bitfinex/quotes_BTCUSD_20250118
["timestamp","ask_amount","ask_price","bid_price","bid_amount"]
[1737175385111,0.00053729,103410.0,103400.0,0.37275181]
[1737175385462,0.12022883,103410.0,103400.0,0.273511]
[1737175385790,0.12022883,103410.0,103400.0,0.196711]
[1737175385994,0.50964121,103410.0,103400.0,0.196711]
[1737175386839,0.33652766,103410.0,103400.0,0.196711]
[1737175387068,0.21683612,103410.0,103400.0,0.29595181]
[1737175387251,0.33652766,103410.0,103400.0,0.29595181]
[1737175388003,0.20674836,103410.0,103400.0,0.29595181]
[1737175388829,0.33652766,103410.0,103400.0,0.29595181]
[1737175389406,0.33652766,103410.0,103400.0,0.2968504]
[1737175389827,0.20674836,103410.0,103400.0,0.2968504]
[1737175391302,0.12022883,103410.0,103400.0,0.2968504]
[1737175391833,0.00053729,103410.0,103400.0,0.3736504]
[1737175391985,0.00053729,103410.0,103400.0,0.4370597]
[1737175392216,0.00053729,103410.0,103400.0,0.3370597]
[1737175392393,0.00053729,103410.0,103400.0,0.4370597]
[1737175398977,0.00053729,103410.0,103400.0,0.4830597]
[1737175407377,0.05943291,103410.0,103400.0,0.4830597]
[1737175408125,0.05943291,103410.0,103400.0,0.4370597]
[1737175415886,0.14595244,103410.0,103400.0,0.4370597]
[1737175418483,0.27573174,103410.0,103400.0,0.4370597]
[1737175419372,0.27573174,103410.0,103400.0,0.46723706]
[1737175422096,0.21683612,103410.0,103400.0,0.46723706]
[1737175422923,0.21683612,103410.0,103400.0,0.4370597]
[1737175423901,0.38994967,103410.0,103400.0,0.4370597]
[1737175424811,0.44884529,103410.0,103400.0,0.16101889]
[1737175425046,0.66464312,103410.0,103400.0,0.26101889]
[1737175425865,0.57812359,103410.0,103400.0,0.33681889]
[1737175426641,0.51922797,103410.0,103400.0,0.4360597]
[1737175426843,0.51922797,103410.0,103400.0,0.46624715]
[1737175427814,0.39008056,103410.0,103400.0,0.46624715]
[1737175428460,0.44897618,103410.0,103400.0,0.46624715]
[1737175429974,0.66477401,103410.0,103400.0,0.46624715]
[1737175430669,0.66477401,103410.0,103400.0,0.4360597]
[1737175431190,0.57812359,103410.0,103400.0,0.46624902]
[1737175432022,0.51922797,103410.0,103400.0,0.46624902]
[1737175435263,0.51922797,103410.0,103400.0,0.4360597]
[1737175436506,0.51922797,103410.0,103400.0,0.46624875]
[1737175438771,0.57812359,103410.0,103400.0,0.46624875]
[1737175438974,0.57812359,103410.0,103400.0,0.26700794]
[1737175439168,0.73372121,103410.0,103400.0,0.00089859]
[1737175439397,0.78342121,103410.0,103400.0,0.00089859]
[1737175440468,0.93342121,103410.0,103400.0,0.00089859]
[1737175440670,1.21391138,103410.0,103400.0,0.00089859]
[1737175441121,1.17732068,103410.0,103400.0,0.00089859]
[1737175441330,1.21391138,103410.0,103400.0,0.00089859]
[1737175441556,1.21583143,103410.0,103400.0,0.00089859]
[1737175441839,1.17924073,103410.0,103400.0,0.00089859]
[1737175442049,0.43985058,103410.0,103400.0,0.00089859]
[1737175442194,0.483896,103410.0,103400.0,0.00089859]
[1737175442390,0.483496,103410.0,103400.0,0.00089859]
[1737175443292,0.2240053,103410.0,103390.0,0.48686993]
[1737175443513,0.2240053,103410.0,103390.0,0.68031093]
[1737175444347,0.21465058,103410.0,103390.0,0.68031093]
[1737175444565,1.17892893,103400.0,103390.0,0.48686993]
[1737175444980,1.05921764,103400.0,103390.0,0.58611074]
[1737175445136,0.67160578,103400.0,103390.0,0.58611074]
[1737175445344,0.67160578,103400.0,103390.0,0.48611074]
[1737175445922,0.67160578,103400.0,103390.0,0.58611074]
[1737175446121,0.37940781,103400.0,103390.0,0.48611074]
[1737175448149,0.37940781,103400.0,103390.0,0.19342893]
[1737175448892,0.47611881,103400.0,103390.0,0.09671093]
[1737175452962,0.47611881,103400.0,103390.0,0.01481093]
[1737175454436,0.37940781,103400.0,103390.0,0.19073193]
[1737175455415,0.47611881,103400.0,103390.0,0.19073193]
[1737175455975,0.47611881,103400.0,103390.0,0.09401093]
[1737175456387,0.47611881,103400.0,103390.0,0.19073193]
[1737175457335,0.47611881,103400.0,103390.0,0.09401093]
[1737175457643,0.47611881,103400.0,103390.0,0.19073193]
[1737175457837,0.47611881,103400.0,103390.0,0.09401093]
[1737175458802,0.47611881,103400.0,103390.0,0.19073193]
[1737175459573,0.47611881,103400.0,103390.0,0.09401093]
[1737175459784,0.47654681,103400.0,103390.0,0.09401093]
[1737175461846,0.48623852,103400.0,103390.0,0.01481093]
[1737175462008,0.60594981,103400.0,103390.0,0.01481093]
[1737175462450,0.48623852,103400.0,103390.0,0.01481093]
[1737175462667,0.48623852,103400.0,103390.0,0.11153193]
[1737175462870,0.48623852,103400.0,103390.0,0.01481093]
[1737175463750,0.48623852,103400.0,103390.0,0.19183193]
[1737175464735,0.48623852,103400.0,103390.0,0.09511093]
[1737175464943,0.48623852,103400.0,103390.0,0.19183193]
[1737175465348,0.48438369,103400.0,103390.0,0.19183193]
[1737175466926,0.48438369,103400.0,103390.0,0.09511093]
[1737175467133,0.48438369,103400.0,103390.0,0.19130593]
[1737175467750,0.48438369,103400.0,103390.0,0.09458493]
[1737175468558,0.48438369,103400.0,103390.0,0.19130593]
[1737175470713,0.48438369,103400.0,103390.0,0.09458493]
[1737175471121,0.48438369,103400.0,103390.0,0.19220473]
[1737175474333,0.48438369,103400.0,103390.0,0.09548373]
[1737175474517,0.48438369,103400.0,103390.0,0.19220473]
[1737175477502,0.26012452,103400.0,103390.0,0.19220473]
[1737175477685,0.31905275,103400.0,103390.0,0.24010473]
[1737175478315,0.37798098,103400.0,103390.0,0.24010473]
[1737175478613,0.53538287,103400.0,103390.0,0.24010473]
[1737175479388,0.5943111,103400.0,103390.0,0.24010473]
[1737175480544,0.33461458,103400.0,103390.0,0.24010473]
[1737175481066,0.27568635,103400.0,103390.0,0.24010473]
[1737175481347,0.33461458,103400.0,103390.0,0.24010473]
[1737175481505,0.5943111,103400.0,103390.0,0.24010473]
[1737175481709,0.53538287,103400.0,103390.0,0.24010473]
[1737175482331,0.5943111,103400.0,103390.0,0.24010473]
[1737175482908,0.53538287,103400.0,103390.0,0.24010473]
[1737175483107,0.37798098,103400.0,103390.0,0.24010473]
[1737175483314,0.31905275,103400.0,103390.0,0.24010473]
[1737175483725,0.37798098,103400.0,103390.0,0.24010473]
[1737175484636,0.31905275,103400.0,103390.0,0.24010473]
[1737175485123,0.26012452,103400.0,103390.0,0.24010473]
[1737175485323,0.31905275,103400.0,103390.0,0.34010473]
[1737175485528,0.31905275,103400.0,103390.0,0.40351403]
[1737175489745,0.37798098,103400.0,103390.0,0.34010473]
[1737175489923,0.47469198,103400.0,103390.0,0.24010473]
[1737175490295,0.37798098,103400.0,103390.0,0.24010473]
[1737175491137,0.47469198,103400.0,103390.0,0.24010473]
[1737175491492,0.37798098,103400.0,103390.0,0.24010473]
[1737175491852,0.47469198,103400.0,103390.0,0.19220473]
[1737175492054,0.37798098,103400.0,103390.0,0.19220473]
[1737175492260,0.47469198,103400.0,103390.0,0.19220473]
[1737175493139,0.95508129,103400.0,103390.0,0.09548373]
[1737175494341,0.95664929,103400.0,103390.0,0.09548373]
[1737175495405,0.50876143,103400.0,103390.0,0.09548373]
[1737175498184,0.52806814,103400.0,103390.0,0.09548373]
[1737175498390,0.97597866,103400.0,103390.0,0.09548373]
[1737175499246,0.52806814,103400.0,103390.0,0.09548373]
[1737175500426,0.29419397,103400.0,103390.0,0.19220473]
[1737175500635,0.41205043,103400.0,103390.0,0.23810473]
[1737175501422,0.86016064,103400.0,103390.0,0.23810473]
[1737175502666,0.95687164,103400.0,103390.0,0.23810473]
[1737175502910,0.95687164,103400.0,103390.0,0.19220473]
[1737175503043,0.86016064,103400.0,103390.0,0.19220473]
[1737175503437,0.95687164,103400.0,103390.0,0.19220473]
[1737175503655,0.86016064,103400.0,103390.0,0.19220473]
[1737175504776,0.95687164,103400.0,103390.0,0.19220473]
[1737175504973,0.86016064,103400.0,103390.0,0.19220473]
[1737175505618,0.95687164,103400.0,103390.0,0.19220473]
[1737175505819,0.86016064,103400.0,103390.0,0.19220473]
[1737175506430,0.95687164,103400.0,103390.0,0.19220473]
[1737175506954,0.95687164,103400.0,103390.0,0.09548373]
[1737175507113,0.95687164,103400.0,103390.0,0.19220473]
[1737175507897,0.95687164,103400.0,103390.0,0.09548373]
[1737175510607,0.95687164,103400.0,103390.0,0.09568373]
[1737175511032,1.01579987,103400.0,103390.0,0.09568373]
[1737175511395,0.95687164,103400.0,103390.0,0.09568373]
[1737175511952,1.01579987,103400.0,103390.0,0.09568373]
[1737175514439,1.01579987,103400.0,103390.0,0.19240473]
[1737175514440,0.86016064,103400.0,103390.0,0.19240473]
[1737175515235,0.41205043,103400.0,103390.0,0.19240473]
[1737175515679,0.56768966,103400.0,103390.0,0.09568373]
[1737175516048,0.82808248,103400.0,103390.0,0.09568373]
[1737175516424,1.2131548,103400.0,103390.0,0.01538373]
[1737175517116,0.72916401,103400.0,103390.0,0.01538373]
[1737175517867,0.69257331,103400.0,103390.0,0.01538373]
[1737175518253,1.11872785,103400.0,103390.0,0.01538373]
[1737175518451,0.1865907,103390.0,103370.0,0.0838988]
[1737175518653,0.27351469,103380.0,103370.0,0.0838988]
[1737175519377,0.21615446,103380.0,103370.0,0.0838988]
[1737175519599,0.21615446,103380.0,103370.0,0.05510545]
[1737175520003,0.40962446,103380.0,103360.0,0.337443]
[1737175520241,0.05892823,103370.0,103360.0,0.337443]
[1737175520396,0.05892823,103370.0,103360.0,0.143945]
[1737175520959,0.11785646,103370.0,103360.0,0.143945]
[1737175521161,0.11785646,103370.0,103360.0,0.0472]
[1737175521545,0.2756773,103370.0,103360.0,0.143949]
[1737175521761,0.2756773,103370.0,103350.0,0.487011]
[1737175521762,0.43134653,103370.0,103350.0,0.483763]
[1737175521962,0.11785646,103360.0,103350.0,0.38949781]
[1737175522137,0.21460546,103360.0,103340.0,0.4478201]
[1737175522440,0.05892823,103350.0,103340.0,0.54706091]
[1737175522657,0.05892823,103350.0,103340.0,0.62236091]
[1737175523112,0.05892823,103350.0,103340.0,0.68577021]
[1737175523507,0.0866428,103350.0,103340.0,0.68577021]
[1737175524210,0.44882085,103360.0,103350.0,0.2864093]
[1737175524444,0.44882085,103360.0,103350.0,0.48240811]
[1737175525348,0.27553524,103360.0,103350.0,0.48240811]
[1737175527241,0.14557103,103360.0,103350.0,0.48240811]
[1737175527853,0.20449926,103360.0,103350.0,0.48240811]
[1737175528078,0.14557103,103360.0,103350.0,0.48240811]
[1737175528433,0.27553524,103360.0,103350.0,0.48240811]
[1737175529007,0.27553524,103360.0,103350.0,0.48330691]
[1737175530763,0.33446347,103360.0,103350.0,0.41989761]
[1737175531120,0.43121247,103360.0,103350.0,0.1238988]
[1737175531505,0.33446347,103360.0,103350.0,0.1238988]
[1737175531731,0.72449815,103360.0,103350.0,0.1238988]
[1737175532123,0.82124715,103360.0,103350.0,0.1238988]
[1737175533197,0.72449815,103360.0,103350.0,0.1238988]
[1737175533578,0.72449815,103360.0,103350.0,0.2206568]
[1737175534984,0.72449815,103360.0,103350.0,0.1238988]
[1737175535417,0.82124715,103360.0,103350.0,0.1238988]
[1737175537423,0.60449808,103360.0,103350.0,0.1238988]
[1737175537968,0.61394563,103360.0,103350.0,0.1238988]
[1737175538182,0.7440519,103360.0,103350.0,0.1238988]
[1737175539662,0.7440519,103360.0,103350.0,0.0761988]
[1737175539867,0.7440519,103360.0,103350.0,0.0851988]
[1737175540292,0.61408769,103360.0,103350.0,0.0851988]
[1737175545935,0.67301592,103360.0,103350.0,0.0098988]
[1737175546134,0.61408769,103360.0,103350.0,0.0098988]
[1737175549284,0.44080208,103360.0,103350.0,0.0098988]
[1737175550362,0.74897112,103360.0,103350.0,0.0098988]
[1737175550526,1.10838424,103360.0,103350.0,0.0098988]
[1737175550938,1.19297494,103360.0,103350.0,0.0098988]
[1737175551783,0.87698506,103360.0,103350.0,0.0098988]
[1737175552128,0.83133606,103360.0,103330.0,0.1272]
[1737175552336,0.21462346,103340.0,103330.0,0.1272]
[1737175553206,0.7335414,103340.0,103330.0,0.1272]
[1737175553652,0.73359195,103340.0,103330.0,0.1272]
[1737175553850,0.73359195,103340.0,103330.0,0.0822]
[1737175555311,0.60386247,103340.0,103330.0,0.0822]
[1737175558004,0.61355795,103340.0,103330.0,0.0822]
[1737175558674,0.38923901,103340.0,103330.0,0.42321781]
[1737175558877,0.38923901,103340.0,103330.0,0.48662711]
[1737175559695,0.38913635,103340.0,103330.0,0.48662711]
[1737175560700,0.44806458,103340.0,103330.0,0.38662711]
[1737175560910,0.05897878,103340.0,103330.0,0.42321781]
[1737175561105,0.05897878,103340.0,103330.0,0.223977]
[1737175561321,5.055e-05,103340.0,103330.0,0.323977]
[1737175561522,0.09681755,103340.0,103330.0,0.2272]
[1737175561718,5.055e-05,103340.0,103330.0,0.223977]
[1737175561943,0.2161637,103340.0,103330.0,0.323977]
[1737175562351,0.3360058,103340.0,103330.0,0.323977]
[1737175562904,0.4327728,103340.0,103330.0,0.1272]
[1737175563109,0.735516,103340.0,103330.0,0.223977]
[1737175563239,0.735516,103340.0,103330.0,0.1272]
[1737175563850,0.735516,103340.0,103330.0,0.0822]
[1737175564046,0.43287546,103340.0,103330.0,0.0822]
[1737175564477,0.33610846,103340.0,103320.0,0.22647717]
[1737175564631,0.2166191,103330.0,103320.0,0.22647717]
[1737175564833,0.72319846,103340.0,103320.0,0.22647717]
[1737175565032,0.72319846,103340.0,103320.0,0.32647717]
[1737175565344,0.2166191,103330.0,103320.0,0.22647717]
[1737175565798,0.2166191,103330.0,103320.0,0.12969817]
[1737175566221,0.096777,103330.0,103320.0,0.13272152]
[1737175566659,0.48596592,103330.0,103320.0,0.13272152]
[1737175567382,0.60580802,103330.0,103320.0,0.13272152]
[1737175568668,0.60580802,103330.0,103320.0,0.08582152]
[1737175569051,0.73543159,103330.0,103320.0,0.08582152]
[1737175570205,0.60580802,103330.0,103320.0,0.08582152]
[1737175570633,0.61560864,103330.0,103320.0,0.08582152]
[1737175571058,0.44263579,103330.0,103320.0,0.08582152]
[1737175572771,0.32279369,103330.0,103320.0,0.08582152]
[1737175572896,0.44263579,103330.0,103320.0,0.08582152]
[1737175573884,0.44263579,103330.0,103320.0,0.00392152]
[1737175577169,0.22601669,103330.0,103320.0,0.18260752]
[1737175577478,0.21621607,103330.0,103320.0,0.22950752]
[1737175577611,0.3889892,103330.0,103320.0,0.22950752]
[1737175578680,0.60497612,103330.0,103320.0,0.22950752]
[1737175580029,0.38876005,103330.0,103320.0,0.22950752]
[1737175580581,0.38876005,103330.0,103320.0,0.22648417]
[1737175580986,1.01264598,103330.0,103320.0,0.08279817]
[1737175581192,1.09483668,103330.0,103320.0,0.00089817]
[1737175581413,0.97499458,103330.0,103320.0,0.00089817]
[1737175582193,1.02609458,103330.0,103320.0,0.00089817]
[1737175582395,1.37677481,103330.0,103320.0,0.00089817]
[1737175582632,0.096796,103310.0,103300.0,0.12499712]
[1737175582858,0.2166381,103310.0,103300.0,0.12499712]
[1737175582989,0.096796,103310.0,103300.0,0.12499712]
[1737175583194,0.2166381,103310.0,103300.0,0.12499712]
[1737175583432,0.2166381,103310.0,103300.0,0.12802112]
[1737175583999,0.096796,103310.0,103300.0,0.12802112]
[1737175584155,0.73490385,103310.0,103300.0,0.12802112]
[1737175585370,0.61506175,103310.0,103300.0,0.12802112]
[1737175586234,0.48549531,103310.0,103300.0,0.12802112]
[1737175586666,0.49499006,103310.0,103300.0,0.12802112]
[1737175586987,0.61483216,103310.0,103300.0,0.12802112]
[1737175587616,0.49499006,103310.0,103300.0,0.12802112]
[1737175587818,0.61483216,103310.0,103300.0,0.12802112]
[1737175588116,0.49499006,103310.0,103300.0,0.12802112]
[1737175588316,0.61483216,103310.0,103300.0,0.12802112]
[1737175588724,0.74435336,103310.0,103300.0,0.12802112]
[1737175589524,0.74435336,103310.0,103300.0,0.07962112]
[1737175590333,0.74435336,103310.0,103300.0,0.00392112]
[1737175590781,0.84359417,103310.0,103300.0,0.00392112]
[1737175590935,0.8004506,103310.0,103300.0,0.00089712]
[1737175591341,1.0326413,103310.0,103300.0,0.00089712]
[1737175591940,0.81669724,103310.0,103300.0,0.00089712]
[1737175593151,1.10939109,103310.0,103300.0,0.00089712]
[1737175594188,0.81669724,103310.0,103300.0,0.00089712]
[1737175596110,0.77109724,103310.0,103300.0,0.00089712]
[1737175596708,0.82240213,103310.0,103300.0,0.00089712]
[1737175597687,1.03798803,103310.0,103300.0,0.00089712]
[1737175598427,0.82240213,103310.0,103300.0,0.00089712]
[1737175598873,0.096805,103300.0,103290.0,0.07599962]
[1737175599075,0.31588791,103300.0,103290.0,0.07599962]
[1737175600135,0.50247861,103300.0,103290.0,0.07615144]
[1737175600531,0.89042203,103300.0,103290.0,0.07615144]
[1737175601749,0.97713561,103300.0,103290.0,0.07615144]
[1737175602717,0.71800273,103300.0,103290.0,0.07615144]
[1737175606262,0.73708065,103300.0,103290.0,0.07615144]
[1737175607226,0.83632146,103300.0,103290.0,0.07615144]
[1737175607432,0.73708065,103300.0,103290.0,0.07615144]
[1737175609033,0.99621353,103300.0,103290.0,0.07615144]
[1737175609683,0.474657,103300.0,103290.0,0.12515144]
[1737175609905,0.474657,103300.0,103290.0,0.32196544]
[1737175610111,0.25913288,103300.0,103290.0,0.32196544]
[1737175610308,0.25913288,103300.0,103290.0,0.48461555]
[1737175610766,0.18103288,103300.0,103290.0,0.76364175]
[1737175610937,0.29269385,103310.0,103300.0,0.3837143]
[1737175611155,0.21554713,103310.0,103300.0,0.6644377]
[1737175611367,0.21554713,103310.0,103300.0,0.68678521]
[1737175611520,0.21554713,103310.0,103300.0,0.7644377]
[1737175611732,0.21554713,103310.0,103300.0,0.6445956]
[1737175612351,0.0004281,103320.0,103310.0,0.424996]
[1737175612550,0.0004281,103320.0,103310.0,0.42423681]
[1737175612751,0.0004281,103320.0,103310.0,0.59380611]
[1737175613172,0.0004281,103320.0,103310.0,0.52423681]
[1737175613881,0.0004281,103320.0,103310.0,0.58764611]
[1737175614832,0.0004281,103320.0,103310.0,0.52423681]
[1737175615550,0.0004281,103320.0,103310.0,0.58764611]
[1737175615750,0.0004281,103320.0,103310.0,0.52423681]
[1737175615952,0.0004281,103320.0,103310.0,0.58764611]
[1737175617609,0.0004281,103320.0,103310.0,0.52423681]
[1737175618710,0.0004281,103320.0,103310.0,0.58764611]
[1737175618906,0.0004281,103320.0,103310.0,0.43764611]
[1737175619125,0.0004281,103320.0,103310.0,0.37423681]
[1737175619316,0.0004281,103320.0,103310.0,0.43764611]
[1737175621075,0.0004281,103320.0,103310.0,0.274996]
[1737175621418,0.0004281,103320.0,103310.0,0.3384053]
[1737175623334,0.0004281,103320.0,103310.0,0.43764611]
[1737175624032,0.0004281,103320.0,103310.0,0.43748952]
[1737175625760,0.0004281,103320.0,103310.0,0.58748952]
[1737175627127,0.0004281,103320.0,103310.0,0.59364952]
[1737175628680,0.0004281,103320.0,103310.0,0.88619162]
[1737175638758,0.0004281,103320.0,103310.0,0.91617915]
[1737175639190,0.000428,103350.0,103340.0,0.4898763]
[1737175639338,0.000428,103350.0,103340.0,0.7537597]
[1737175639542,0.000428,103350.0,103340.0,0.7767597]
[1737175639737,0.000428,103350.0,103340.0,0.8767597]
[1737175640345,0.00047855,103350.0,103340.0,0.8767597]
[1737175641390,0.00047855,103350.0,103340.0,0.9223597]
[1737175641906,0.00047855,103350.0,103340.0,0.95235397]
[1737175642029,0.00047855,103350.0,103340.0,0.9720366]
[1737175642228,0.00047855,103350.0,103340.0,0.94204233]
[1737175642474,0.00047855,103350.0,103340.0,0.97202669]
[1737175643096,0.00047855,103350.0,103340.0,0.98180087]
[1737175645646,0.0004281,103370.0,103360.0,0.2634093]
[1737175645802,0.00047868,103370.0,103360.0,0.79620425]
[1737175646229,0.00047868,103370.0,103360.0,0.7661817]
[1737175646620,0.00047868,103370.0,103360.0,0.79618686]
[1737175648795,0.00047868,103370.0,103360.0,0.81552965]
[1737175650111,0.00047868,103370.0,103360.0,0.82512961]
[1737175651301,0.00047868,103370.0,103360.0,0.83128961]
[1737175651833,0.00047868,103370.0,103360.0,0.80128445]
[1737175652033,0.00047868,103370.0,103360.0,0.83124123]
[1737175652246,0.00047868,103370.0,103360.0,0.80128445]
[1737175652778,0.00047868,103370.0,103360.0,0.83123838]
[1737175652982,0.00047868,103370.0,103360.0,0.80128445]
[1737175653498,0.00047868,103370.0,103360.0,0.83123682]
[1737175653872,0.00047868,103370.0,103360.0,0.80128445]
[1737175654476,0.00047868,103370.0,103360.0,0.83123807]
[1737175655206,0.00047868,103370.0,103360.0,0.80128445]
[1737175656185,0.00047868,103370.0,103360.0,0.83123966]
[1737175658121,6.8e-07,103370.0,103360.0,1.20108176]
[1737175658322,0.0015181,103380.0,103370.0,0.6089483]
[1737175658550,0.123256,103410.0,103400.0,0.1]
[1737175658756,0.04760589,103410.0,103400.0,0.5480016]
[1737175659388,0.04760589,103410.0,103400.0,0.48442593]
[1737175662289,0.00050589,103410.0,103400.0,0.49390145]
[1737175662512,0.12413329,103420.0,103410.0,0.1601113]
[1737175662722,0.12428499,103420.0,103410.0,0.25935211]
[1737175662897,0.12428499,103420.0,103410.0,0.29577644]
[1737175665396,0.12428499,103420.0,103410.0,0.23236714]
[1737175665603,0.12428499,103420.0,103410.0,0.29577644]
[1737175670409,0.12428499,103420.0,103410.0,0.096702]
[1737175670410,0.24412709,103420.0,103410.0,0.096702]
[1737175670796,0.34082009,103420.0,103410.0,0.096702]
[1737175670995,0.0761,103410.0,103400.0,0.37465234]
[1737175671240,0.2454421,103410.0,103400.0,0.096705]
[1737175671454,0.3421441,103410.0,103400.0,0.096705]
[1737175672042,0.2454421,103410.0,103400.0,0.096705]
[1737175672809,0.1256,103410.0,103400.0,0.096705]
[1737175673489,0.222302,103410.0,103400.0,0.096705]
[1737175673698,0.1256,103410.0,103400.0,0.096705]
[1737175674178,0.2660441,103410.0,103390.0,0.51999633]
[1737175674389,0.0761,103400.0,103390.0,0.32656633]
[1737175674599,0.0761,103400.0,103390.0,0.290142]
[1737175675009,0.3421531,103400.0,103390.0,0.096712]
[1737175675440,0.5355791,103400.0,103380.0,0.32659633]
[1737175675654,0.3421531,103400.0,103390.0,0.096721]
[1737175675862,0.0761,103390.0,103380.0,0.290171]
[1737175676066,0.1959421,103390.0,103380.0,0.32659533]
[1737175676270,0.1959421,103390.0,103380.0,0.290171]
[1737175676476,0.1256,103390.0,103380.0,0.32659533]
[1737175676688,0.1256,103390.0,103380.0,0.290171]
[1737175677368,0.1256,103390.0,103380.0,0.32659533]
[1737175677732,0.1256,103390.0,103380.0,0.290171]
[1737175678131,0.1256,103390.0,103380.0,0.32659533]
[1737175678335,0.1256,103390.0,103380.0,0.290171]
[1737175678540,0.1256,103390.0,103380.0,0.32659533]
[1737175678742,0.1256,103390.0,103380.0,0.290171]
[1737175679216,0.1256,103390.0,103380.0,0.32659533]
[1737175680390,0.1256,103390.0,103380.0,0.290171]
[1737175680792,0.2454421,103390.0,103380.0,0.290171]
[1737175681420,0.2454421,103390.0,103380.0,0.096723]
[1737175682213,0.3421631,103390.0,103380.0,0.096723]
[1737175682417,0.0761,103380.0,103370.0,0.290199]
[1737175682764,0.1959421,103380.0,103360.0,0.61203982]
[1737175682980,0.0761,103380.0,103370.0,0.096739]
[1737175683185,0.1256,103380.0,103370.0,0.096739]
[1737175683391,0.1256,103370.0,103360.0,0.096744]
[1737175683817,0.222339,103370.0,103360.0,0.09725489]
[1737175683987,0.2454421,103370.0,103360.0,0.09725489]
[1737175684190,0.3421811,103370.0,103360.0,0.09725489]
[1737175684728,0.2454421,103370.0,103360.0,0.09725489]
[1737175685200,0.2454421,103370.0,103360.0,0.00050589]
[1737175685514,0.2454421,103370.0,103360.0,0.09725489]
[1737175686073,0.84692593,103370.0,103360.0,0.09725489]
[1737175686756,0.72708383,103370.0,103360.0,0.09725489]
[1737175687142,0.13542626,103370.0,103360.0,0.13367922]
[1737175688248,0.0495,103370.0,103360.0,0.13367922]
[1737175691617,0.1693421,103370.0,103360.0,0.13367922]
[1737175692358,0.0495,103370.0,103360.0,0.13367922]
[1737175693612,0.1693421,103370.0,103360.0,0.09725489]
[1737175693913,0.2522421,103370.0,103360.0,0.09725489]
[1737175695792,0.2522421,103370.0,103360.0,0.09815306]
[1737175697062,0.3489811,103370.0,103360.0,0.09815306]
[1737175698046,0.2522421,103370.0,103360.0,0.09815306]
[1737175698663,0.3489811,103370.0,103360.0,0.09815306]
[1737175698929,0.2522421,103370.0,103360.0,0.09815306]
[1737175699571,0.3489811,103370.0,103360.0,0.09815306]
[1737175700773,0.3489811,103370.0,103360.0,0.00140406]
[1737175700971,0.54746272,103370.0,103360.0,0.00140406]
[1737175701172,0.64762909,103370.0,103360.0,0.00140406]
[1737175701766,0.51179758,103370.0,103360.0,0.00140406]
[1737175702169,0.35148291,103370.0,103360.0,0.09815306]
[1737175702370,0.2522421,103370.0,103360.0,0.09815306]
[1737175702574,0.3489811,103370.0,103360.0,0.09815306]
[1737175702789,0.2522421,103370.0,103360.0,0.09815306]
[1737175703354,0.51179758,103370.0,103360.0,0.00140406]
[1737175703572,0.51179758,103370.0,103360.0,0.09815306]
[1737175707898,0.51179758,103370.0,103360.0,0.00140406]
[1737175708172,0.51179758,103370.0,103360.0,0.09815306]
[1737175709445,0.51179758,103370.0,103360.0,0.09810329]
[1737175709628,0.52166666,103370.0,103360.0,0.09810329]
[1737175712084,0.52166666,103370.0,103360.0,0.00135429]
[1737175712652,0.52166666,103370.0,103360.0,0.09810329]
[1737175714855,0.60759292,103370.0,103360.0,0.09810329]
[1737175715303,0.51085392,103370.0,103360.0,0.09810329]
[1737175715790,0.60759292,103370.0,103360.0,0.09810329]
[1737175716220,0.73648231,103370.0,103360.0,0.09810329]
[1737175717194,0.90833483,103370.0,103360.0,0.09810329]
[1737175717426,0.90833483,103370.0,103360.0,0.00135429]
[1737175717670,0.94492553,103370.0,103360.0,0.00135429]
[1737175717783,1.17419196,103370.0,103360.0,0.00135429]
[1737175718018,1.38900762,103370.0,103360.0,0.00135429]
[1737175718240,1.25718638,103370.0,103360.0,0.00135429]
[1737175718897,0.91348134,103370.0,103360.0,0.00135429]
[1737175719103,1.01272215,103370.0,103360.0,0.00135429]
[1737175719800,1.01315015,103370.0,103360.0,0.00135429]
[1737175721672,1.01315015,103370.0,103360.0,0.09810329]
[1737175721673,0.89090934,103370.0,103360.0,0.09810329]
[1737175721889,1.24448615,103370.0,103360.0,0.00135429]
[1737175722719,1.24448615,103370.0,103360.0,0.09810329]
[1737175722921,1.24448615,103370.0,103360.0,0.00135429]
[1737175723121,0.95448501,103370.0,103360.0,0.00135429]
[1737175723335,1.05372582,103370.0,103360.0,0.00135429]
[1737175724114,1.01713512,103370.0,103360.0,0.09810329]
[1737175724383,0.95448501,103370.0,103360.0,0.09810329]
[1737175724831,0.91789431,103370.0,103360.0,0.09810329]
[1737175725621,0.95448501,103370.0,103360.0,0.09810329]
[1737175726086,0.95448501,103370.0,103360.0,0.00135429]
[1737175727105,0.71422205,103370.0,103360.0,0.08395429]
[1737175727261,0.51481487,103370.0,103360.0,0.18070329]
[1737175727494,0.62267783,103370.0,103360.0,0.18070329]
[1737175728610,0.65926853,103370.0,103360.0,0.18070329]
[1737175728775,0.65926853,103370.0,103360.0,0.00135429]
[1737175728981,0.82208501,103370.0,103360.0,0.00135429]
[1737175729186,1.07032582,103370.0,103360.0,0.00135429]
[1737175729392,0.90250934,103370.0,103360.0,0.00135429]
[1737175729600,1.0103723,103370.0,103360.0,0.00135429]
[1737175729806,0.9737816,103370.0,103360.0,0.00135429]
[1737175730422,0.51967964,103370.0,103360.0,0.09810329]
[1737175730631,0.56204956,103370.0,103360.0,0.09810329]
[1737175731133,0.59864026,103370.0,103360.0,0.09810329]
[1737175731336,1.07790691,103370.0,103360.0,0.09810329]
[1737175731724,1.04131621,103370.0,103360.0,0.09591645]
[1737175732067,0.52053519,103370.0,103360.0,0.09591645]
[1737175732479,0.55712589,103370.0,103360.0,0.09591645]
[1737175734133,0.42379619,103370.0,103360.0,0.09591645]
[1737175734333,0.68329358,103370.0,103360.0,0.09591645]
[1737175734551,0.78003258,103370.0,103360.0,0.09591645]
[1737175735031,0.68329358,103370.0,103360.0,0.09591645]
[1737175735237,0.58405277,103370.0,103360.0,0.09591645]
[1737175735377,0.58405277,103370.0,103360.0,0.17271645]
[1737175736640,0.49763667,103370.0,103360.0,0.17271645]
[1737175739122,0.59437567,103370.0,103360.0,0.17271645]
[1737175739526,0.49763667,103370.0,103360.0,0.17271645]
[1737175739945,0.59437567,103370.0,103360.0,0.17271645]
[1737175740166,0.42129438,103370.0,103360.0,0.17271645]
[1737175740396,0.32455538,103370.0,103360.0,0.17271645]
[1737175740961,0.42129438,103370.0,103360.0,0.17271645]
[1737175741380,0.32455538,103370.0,103360.0,0.17271645]
[1737175741996,0.32455538,103370.0,103360.0,0.17361525]
[1737175743469,0.42129438,103370.0,103360.0,0.17361525]
[1737175743684,0.32455538,103370.0,103360.0,0.17361525]
[1737175744108,0.42129438,103370.0,103360.0,0.09681525]
[1737175744754,0.58411086,103370.0,103360.0,0.0008988]
[1737175745372,0.62070156,103370.0,103360.0,0.0008988]
[1737175746444,1.1415959,103370.0,103360.0,0.0008988]
[1737175747232,0.95434127,103370.0,103360.0,0.0008988]
[1737175748188,0.7574359,103370.0,103360.0,0.0976478]
[1737175748392,0.65819509,103370.0,103360.0,0.1760478]
[1737175748847,0.75493409,103370.0,103360.0,0.1760478]